[Event "FIDE Zonal 2.5 Open 2019"]
[Site "Montevideo"]
[Date "2019.04.16"]
[Round "5.14"]
[White "Rodriguez, Santiago"]
[Black "Belmes, Martin"]
[Result "0-1"]
[ECO "A45"]
[WhiteElo "2257"]
[BlackElo "2081"]
[Annotator "NA"]
[PlyCount "147"]
[EventDate "2019.04.13"]
[EventType "swiss"]
[EventCountry "URU"]
[SourceTitle "playchess.com"]
[Source "ChessBase"]
[SourceQuality "1"]
[TimeControl "40/5400+30:1800+30"]

1. d4 {[%emt 0:08:22]} Nf6 2. Bf4 c5 {[%emt 0:00:01]} 3. d5 {[%emt 0:06:53]} Qb6 {[%emt 0:00:14]} 4. Nc3 {[%emt 0:01:03]} Qxb2 {[%emt 0:04:19]} 5. Bd2 {[%emt 0:00:06]} Qb6 {[%emt 0:00:16]} 6. e4 {[%emt 0:00:06]} d6 {[%emt 0:00:31]} 7. f4 {[%emt 0:00:05]} Nbd7 {[%emt 0:00:25]} 8. Nf3 {[%emt 0:00:13]} Qc7 {[%emt 0:02:42]} 9. Bc4 {[%emt 0:01:48]} a6 {[%emt 0:02:44]} 10. a4 {[%emt 0:00:08]} Nb6 {[%emt 0:00:55]} 11. Ba2 {[%emt 0:00:58]} e5 {[%emt 0:00:48]} 12. O-O {[%emt 0:08:22]} Bd7 {[%emt 0:02:45]} 13. Ng5 {[%emt 0:11:02]} c4 {[%emt 0:04:47]} 14. a5 {[%emt 0:07:32]} Na4 {[%emt 0:03:04]} 15. Qe2 {[%emt 0:10:56]} Rc8 {[%emt 0:13:57]} 16. Nxa4 {[%emt 0:02:37]} Bxa4 {[%emt 0:00:04]} 17. Bc3 {[%emt 0:00:25]} Be7 {[%emt 0:02:27]} 18. fxe5 {[%emt 0:04:04]} dxe5 {[%emt 0:00:10]} 19. Rf5 {[%emt 0:00:34]} Bd6 {[%emt 0:01:38]} 20. Raf1 {[%emt 0:00:17]} h6 {[%emt 0:02:11]} 21. Nf3 {[%emt 0:16:08]} Bd7 {[%emt 0:00:06]} 22. Rxe5+ {[%emt 0:02:24]} Bxe5 {[%emt 0:00:20]} 23. Bxe5 {[%emt 0:00:06]} Qc5+ {[%emt 0:02:22]} 24. Bd4 {[%emt 0:02:13]} Qe7 {[%emt 0:00:08]} 25. Ne5 {[%emt 0:00:35]} O-O {[%emt 0:03:35]} 26. Bxc4 {[%emt 0:05:20]} Bb5 {[%emt 0:00:22]} 27. Bd3 {[%emt 0:01:26]} Bxd3 {[%emt 0:03:06]} 28. cxd3 {[%emt 0:00:10]} Nd7 {[%emt 0:00:16]} 29. Nc4 {[%emt 0:01:12]} f6 {[%emt 0:00:32]} 30. Ne3 {[%emt 0:02:22]} Qb4 {[%emt 0:02:11]} 31. Nf5 {[%emt 0:00:40]} Kh7 {[%emt 0:02:07]} 32. Be3 {[%emt 0:00:55]} Ne5 {[%emt 0:02:42]} 33. Qh5 {[%emt 0:01:51]} Nf7 {[%emt 0:01:52]} 34. Nh4 {[%emt 0:01:26]} Nh8 {[%emt 0:02:39]} 35. Nf5 {[%emt 0:02:24]} Nf7 {[%emt 0:05:21]} 36. Nh4 {[%emt 0:01:36]} Rc7 {[%emt 0:01:48]} 37. Qg6+ {[%emt 0:00:45]} Kh8 {[%emt 0:00:09]} 38. Qg3 {[%emt 0:00:31]} Rfc8 {[%emt 0:00:55]} 39. Nf5 {[%emt 0:01:11]} Ng5 {[%emt 0:01:09]} 40. h4 {[%emt 0:00:18]} Nh7 {[%emt 0:00:06]} 41. Bb6 {[%emt 0:01:36]} Rd7 {[%emt 0:00:00]} 42. Qg4 {[%emt 0:00:39]} Qa4 {[%emt 0:02:16]} 43. d6 {[%emt 0:14:45]} Nf8 {[%emt 0:02:28]} 44. Nxg7 {[%emt 0:01:06]} Nh7 {[%emt 0:00:59]} 45. Nf5 {[%emt 0:01:01]} Rg8 {[%emt 0:00:20]} 46. Qf3 {[%emt 0:00:44]} h5 {[%emt 0:04:19]} 47. Qxh5 {[%emt 0:01:10]} Qc2 {[%emt 0:01:26]} 48. Qf3 {[%emt 0:00:09]} Rg6 {[%emt 0:01:50]} 49. Rf2 {[%emt 0:02:16]} Qc1+ {[%emt 0:00:11]} 50. Rf1 {[%emt 0:00:20]} Qc2 {[%emt 0:00:03]} 51. d4 {[%emt 0:03:53]} Qa2 {[%emt 0:03:25]} 52. Rc1 {[%emt 0:01:54]} Qe6 {[%emt 0:01:01]} 53. Rc8+ {[%emt 0:01:21]} Rg8 {[%emt 0:00:06]} 54. d5 {[%emt 0:02:30]} Qe5 {[%emt 0:02:16]} 55. Rxg8+ {[%emt 0:01:03]} Kxg8 {[%emt 0:00:04]} 56. Qg4+ {[%emt 0:01:13]} Kh8 {[%emt 0:01:08]} 57. Ne7 {[%emt 0:00:39]} Rxe7 {[%emt 0:00:49]} 58. dxe7 {[%emt 0:00:05]} Qxe7 {[%emt 0:00:03]} 59. Qc8+ {[%emt 0:01:24]} Kg7 {[%emt 0:00:12]} 60. Qc7 {[%emt 0:00:08]} Qxc7 {[%emt 0:01:19]} 61. Bxc7 {[%emt 0:00:02]} Nf8 {[%emt 0:00:11]} 62. Kf2 {[%emt 0:00:30]} Nd7 {[%emt 0:00:06]} 63. Ke3 {[%emt 0:00:16]} Kf7 {[%emt 0:01:07]} 64. g4 {[%emt 0:00:17]} Nf8 {[%emt 0:00:29]} 65. h5 {[%emt 0:00:15]} Nd7 {[%emt 0:00:29]} 66. Bd6 {[%emt 0:00:14]} b6 {[%emt 0:00:19]} 67. Kd4 {[%emt 0:01:37]} b5 {[%emt 0:00:35]} 68. Ke3 {[%emt 0:01:16]} Kg7 {[%emt 0:00:19]} 69. Kf4 {[%emt 0:00:55]} Kg8 {[%emt 0:00:17]} 70. Kf5 {[%emt 0:00:29]} Kf7 {[%emt 0:00:06]} 71. g5 {[%emt 0:00:26]} fxg5 {[%emt 0:00:18]} 72. e5 {[%emt 0:00:28]} Kg7 {[%emt 0:01:32]} 73. e6 {[%emt 0:00:09]} Nf8 {[%emt 0:00:41]} 74. h6+ {[%emt 0:00:12]} 0-1

[Event "FIDE Zonal 2.5 Open 2019"]
[Site "Montevideo"]
[Date "2019.04.16"]
[Round "5.15"]
[White "Curi, Gabriel"]
[Black "Gaye, Gustavo"]
[Result "1/2-1/2"]
[ECO "A43"]
[WhiteElo "2202"]
[BlackElo "2000"]
[Annotator "NA"]
[PlyCount "104"]
[EventDate "2019.04.13"]
[EventType "swiss"]
[EventCountry "URU"]
[SourceTitle "playchess.com"]
[Source "ChessBase"]
[SourceQuality "1"]
[TimeControl "40/5400+30:1800+30"]

1. d4 {[%emt 0:00:00]} c5 {[%emt 0:00:00]} 2. d5 {[%emt 0:00:00]} d6 {[%emt 0:00:00]} 3. c4 {[%emt 0:00:00]} g6 {[%emt 0:00:28]} 4. e4 {[%emt 0:00:03]} Nf6 {[%emt 0:00:38]} 5. Nc3 {[%emt 0:00:07]} Bg7 {[%emt 0:00:09]} 6. f3 {[%emt 0:00:06]} Na6 {[%emt 0:05:27]} 7. Be3 {[%emt 0:00:57]} O-O {[%emt 0:02:25]} 8. Qd2 {[%emt 0:00:20]} Nc7 {[%emt 0:04:07]} 9. a3 {[%emt 0:05:37]} b6 {[%emt 0:09:58]} 10. Nge2 {[%emt 0:01:24]} Bd7 {[%emt 0:01:45]} 11. Nf4 {[%emt 0:03:57]} Rb8 {[%emt 0:03:58]} 12. b4 {[%emt 0:05:56]} a6 {[%emt 0:04:07]} 13. Be2 {[%emt 0:00:51]} Nce8 {[%emt 0:09:57]} 14. O-O {[%emt 0:02:04]} e6 {[%emt 0:05:08]} 15. Rab1 {[%emt 0:06:03]} e5 {[%emt 0:04:03]} 16. Nd3 {[%emt 0:00:48]} Nh5 {[%emt 0:03:09]} 17. a4 {[%emt 0:09:09]} Nf4 {[%emt 0:15:07]} 18. a5 {[%emt 0:05:06]} Nxd3 {[%emt 0:03:55]} 19. Qxd3 {[%emt 0:00:56]} cxb4 {[%emt 0:01:40]} 20. Rxb4 {[%emt 0:00:20]} bxa5 {[%emt 0:00:15]} 21. Rxb8 {[%emt 0:00:14]} Qxb8 {[%emt 0:00:02]} 22. c5 {[%emt 0:00:54]} dxc5 {[%emt 0:08:43]} 23. Rb1 {[%emt 0:04:01]} Qc8 {[%emt 0:00:46]} 24. Qxa6 {[%emt 0:00:10]} Qxa6 {[%emt 0:00:36]} 25. Bxa6 {[%emt 0:00:06]} Nc7 {[%emt 0:00:07]} 26. Bc4 {[%emt 0:00:41]} Rc8 {[%emt 0:01:05]} 27. Rb7 {[%emt 0:02:48]} Bf8 {[%emt 0:02:19]} 28. Ra7 {[%emt 0:00:34]} a4 {[%emt 0:00:54]} 29. Kf2 {[%emt 0:10:30]} Bd6 {[%emt 0:02:08]} 30. Nxa4 {[%emt 0:00:47]} Bxa4 {[%emt 0:00:42]} 31. Rxa4 {[%emt 0:00:07]} Ra8 {[%emt 0:00:43]} 32. Rxa8+ {[%emt 0:05:09]} Nxa8 {[%emt 0:00:01]} 33. Ke2 {[%emt 0:00:07]} Kf8 {[%emt 0:03:06]} 34. g3 {[%emt 0:00:13]} Nb6 {[%emt 0:03:18]} 35. Bb5 {[%emt 0:00:20]} f5 {[%emt 0:00:42]} 36. Kd3 {[%emt 0:04:55]} Kf7 {[%emt 0:03:49]} 37. h4 {[%emt 0:04:56]} h5 {[%emt 0:02:26]} 38. Kc3 {[%emt 0:02:05]} Kf8 {[%emt 0:00:39]} 39. Bg5 {[%emt 0:09:29]} Be7 {[%emt 0:00:21]} 40. Be3 {[%emt 0:02:09]} Bd6 {[%emt 0:00:30]} 41. Bd3 {[%emt 0:30:59]} fxe4 {[%emt 0:30:42]} 42. Bxe4 {[%emt 0:00:47]} Kf7 {[%emt 0:00:00]} 43. Bg5 {[%emt 0:00:00]} Be7 {[%emt 0:00:00]} 44. Bxe7 {[%emt 0:00:00]} Kxe7 {[%emt 0:00:00]} 45. Bxg6 {[%emt 0:00:00]} Nxd5+ {[%emt 0:00:00]} 46. Kc4 {[%emt 0:00:00]} Ne3+ {[%emt 0:00:00]} 47. Kxc5 {[%emt 0:00:00]} Nf1 {[%emt 0:00:00]} 48. Bxh5 {[%emt 0:00:00]} Nxg3 {[%emt 0:00:00]} 49. Bg6 {[%emt 0:00:00]} Kf6 {[%emt 0:00:00]} 50. Bd3 {[%emt 0:00:00]} Nh5 {[%emt 0:00:00]} 51. Kd5 {[%emt 0:00:00]} Nf4+ {[%emt 0:00:00]} 52. Ke4 {[%emt 0:00:00]} Ne6 {[%emt 0:00:00]} 1/2-1/2

[Event "FIDE Zonal 2.5 Open 2019"]
[Site "Montevideo"]
[Date "2019.04.16"]
[Round "5.16"]
[White "Sosa Macho, Juan Manuel"]
[Black "Carvalho, Guillermo"]
[Result "1-0"]
[ECO "A06"]
[WhiteElo "2076"]
[BlackElo "2194"]
[Annotator "NA"]
[PlyCount "85"]
[EventDate "2019.04.13"]
[EventType "swiss"]
[EventCountry "URU"]
[SourceTitle "playchess.com"]
[Source "ChessBase"]
[SourceQuality "1"]
[TimeControl "40/5400+30:1800+30"]

1. Nf3 {[%emt 0:00:00]} d5 {[%emt 0:00:00]} 2. b3 {[%emt 0:00:00]} Nf6 {[%emt 0:01:45]} 3. Bb2 {[%emt 0:00:00]} e6 {[%emt 0:01:26]} 4. e3 {[%emt 0:00:23]} Nbd7 {[%emt 0:01:02]} 5. Be2 {[%emt 0:00:13]} Be7 {[%emt 0:00:10]} 6. O-O {[%emt 0:00:06]} O-O {[%emt 0:00:23]} 7. d3 {[%emt 0:00:54]} b6 {[%emt 0:01:25]} 8. c4 {[%emt 0:00:52]} Bb7 {[%emt 0:00:31]} 9. Nbd2 {[%emt 0:02:40]} Re8 {[%emt 0:09:08]} 10. Ne1 {[%emt 0:03:52]} Bd6 {[%emt 0:04:40]} 11. cxd5 {[%emt 0:07:25]} exd5 {[%emt 0:00:28]} 12. d4 {[%emt 0:00:43]} Nf8 {[%emt 0:04:39]} 13. Nd3 {[%emt 0:02:51]} Ng6 {[%emt 0:01:19]} 14. Re1 {[%emt 0:02:59]} Ne4 {[%emt 0:05:01]} 15. Nf1 {[%emt 0:02:17]} Qe7 {[%emt 0:10:31]} 16. Bf3 {[%emt 0:02:47]} Ba6 {[%emt 0:07:49]} 17. Ng3 {[%emt 0:04:54]} Qh4 {[%emt 0:04:16]} 18. Rc1 {[%emt 0:02:51]} Rad8 {[%emt 0:06:27]} 19. Ne5 {[%emt 0:04:50]} Nxe5 {[%emt 0:02:52]} 20. dxe5 {[%emt 0:00:14]} Bb4 {[%emt 0:01:36]} 21. Rxc7 {[%emt 0:00:27]} Bxe1 {[%emt 0:00:20]} 22. Qxe1 {[%emt 0:00:07]} Nxg3 {[%emt 0:02:31]} 23. hxg3 {[%emt 0:00:13]} Qg5 {[%emt 0:00:44]} 24. Rxa7 {[%emt 0:00:06]} Bc8 {[%emt 0:01:53]} 25. Be2 {[%emt 0:07:38]} Be6 {[%emt 0:02:59]} 26. Qb4 {[%emt 0:01:57]} Qf5 {[%emt 0:00:40]} 27. Bd4 {[%emt 0:01:49]} Rc8 {[%emt 0:00:27]} 28. f3 {[%emt 0:02:00]} Rc1+ {[%emt 0:05:59]} 29. Kf2 {[%emt 0:00:35]} Rec8 {[%emt 0:01:41]} 30. Qb5 {[%emt 0:04:02]} Qh5 31. f4 {[%emt 0:07:43]} Bg4 {[%emt 0:06:26]} 32. e6 {[%emt 0:05:46]} Bxe2 {[%emt 0:01:48]} 33. exf7+ {[%emt 0:00:13]} Kh8 {[%emt 0:00:44]} 34. f8=Q+ {[%emt 0:00:22]} Rxf8 {[%emt 0:00:21]} 35. Qxe2 {[%emt 0:00:06]} Qh1 {[%emt 0:09:17]} 36. Bxg7+ {[%emt 0:01:11]} Kg8 {[%emt 0:00:17]} 37. Bxf8 {[%emt 0:00:13]} Qg1+ {[%emt 0:00:57]} 38. Kf3 {[%emt 0:00:09]} h5 {[%emt 0:02:09]} 39. g4 {[%emt 0:00:19]} Rf1+ {[%emt 0:01:20]} 40. Kg3 {[%emt 0:00:19]} Re1 {[%emt 0:00:32]} 41. Qc2 {[%emt 0:31:26]} Rxe3+ {[%emt 0:32:53]} 42. Kh4 {[%emt 0:00:12]} Re4 {[%emt 0:00:42]} 43. Bd6 {[%emt 0:01:43]} 1-0

[Event "FIDE Zonal 2.5 Open 2019"]
[Site "Montevideo"]
[Date "2019.04.16"]
[Round "5.17"]
[White "El Ters, Antouan"]
[Black "Dotta, Gian Franco"]
[Result "1-0"]
[ECO "C05"]
[WhiteElo "2181"]
[BlackElo "1959"]
[Annotator "NA"]
[PlyCount "71"]
[EventDate "2019.04.13"]
[EventType "swiss"]
[EventCountry "URU"]
[SourceTitle "playchess.com"]
[Source "ChessBase"]
[SourceQuality "1"]
[TimeControl "40/5400+30:1800+30"]

1. e4 {[%emt 0:00:00]} e6 2. d4 {[%emt 0:00:00]} d5 {[%emt 0:00:07]} 3. Nd2 {[%emt 0:00:02]} Nf6 {[%emt 0:00:11]} 4. Bd3 {[%emt 0:01:04]} c5 {[%emt 0:00:41]} 5. exd5 {[%emt 0:03:12]} Qxd5 {[%emt 0:03:39]} 6. Ngf3 {[%emt 0:01:04]} cxd4 {[%emt 0:01:41]} 7. Bc4 {[%emt 0:01:10]} Qd8 {[%emt 0:07:56]} 8. Nb3 {[%emt 0:00:28]} Nc6 {[%emt 0:03:14]} 9. O-O {[%emt 0:02:42]} Be7 {[%emt 0:01:16]} 10. Nbxd4 {[%emt 0:03:41]} Nxd4 {[%emt 0:01:33]} 11. Nxd4 {[%emt 0:01:09]} O-O {[%emt 0:00:18]} 12. c3 {[%emt 0:01:41]} Qc7 {[%emt 0:01:43]} 13. Qe2 {[%emt 0:00:58]} b6 {[%emt 0:02:39]} 14. Bg5 {[%emt 0:07:35]} Bb7 {[%emt 0:03:56]} 15. Rfe1 {[%emt 0:08:28]} Kh8 {[%emt 0:07:32]} 16. Bd3 {[%emt 0:02:03]} Rfd8 {[%emt 0:05:14]} 17. Rad1 {[%emt 0:01:20]} Qc5 {[%emt 0:07:33]} 18. Bh4 {[%emt 0:06:50]} Qd5 {[%emt 0:13:33]} 19. f3 {[%emt 0:00:30]} Qh5 {[%emt 0:03:13]} 20. Bg3 {[%emt 0:10:33]} Bc5 {[%emt 0:03:51]} 21. Bc2 {[%emt 0:14:28]} Nd5 {[%emt 0:02:57]} 22. Kh1 {[%emt 0:03:26]} Rac8 {[%emt 0:02:35]} 23. Be4 {[%emt 0:01:16]} Ba8 {[%emt 0:04:48]} 24. Qa6 {[%emt 0:03:20]} Ne7 {[%emt 0:08:01]} 25. Qxa7 {[%emt 0:02:45]} Bxe4 {[%emt 0:00:43]} 26. fxe4 {[%emt 0:00:23]} b5 {[%emt 0:02:38]} 27. Qb7 {[%emt 0:02:14]} b4 {[%emt 0:02:23]} 28. Nf3 {[%emt 0:03:07]} bxc3 {[%emt 0:00:59]} 29. bxc3 {[%emt 0:02:54]} Ng8 {[%emt 0:02:31]} 30. Rxd8 {[%emt 0:01:22]} Rxd8 {[%emt 0:00:08]} 31. Ne5 {[%emt 0:00:37]} Nh6 {[%emt 0:02:55]} 32. Qc7 {[%emt 0:02:20]} Rd1 {[%emt 0:03:35]} 33. Qxc5 {[%emt 0:00:41]} Rxe1+ {[%emt 0:01:05]} 34. Bxe1 {[%emt 0:00:08]} f6 {[%emt 0:00:25]} 35. Qf8+ {[%emt 0:00:12]} Ng8 {[%emt 0:00:07]} 36. Nf7+ {[%emt 0:00:19]} 1-0

[Event "FIDE Zonal 2.5 Open 2019"]
[Site "Montevideo"]
[Date "2019.04.16"]
[Round "5.18"]
[White "Moccero, Eduardo"]
[Black "Kropff, Ricardo"]
[Result "1/2-1/2"]
[ECO "D04"]
[WhiteElo "1939"]
[BlackElo "2220"]
[Annotator "NA"]
[PlyCount "40"]
[EventDate "2019.04.13"]
[EventType "swiss"]
[EventCountry "URU"]
[SourceTitle "playchess.com"]
[Source "ChessBase"]
[SourceQuality "1"]
[TimeControl "40/5400+30:1800+30"]

1. d4 {[%emt 0:00:00]} Nf6 {[%emt 0:01:37]} 2. Nf3 d5 3. e3 {[%emt 0:00:28]} c5 {[%emt 0:00:35]} 4. Bd3 {[%emt 0:00:24]} Nbd7 {[%emt 0:00:24]} 5. c3 {[%emt 0:00:10]} g6 {[%emt 0:00:15]} 6. Nbd2 {[%emt 0:01:01]} Bg7 {[%emt 0:00:06]} 7. O-O {[%emt 0:00:10]} O-O {[%emt 0:00:07]} 8. Bc2 {[%emt 0:01:11]} Qc7 {[%emt 0:00:55]} 9. Qe2 {[%emt 0:02:35]} e5 {[%emt 0:02:58]} 10. dxe5 {[%emt 0:03:27]} Nxe5 {[%emt 0:00:07]} 11. Nxe5 {[%emt 0:00:09]} Qxe5 {[%emt 0:00:06]} 12. Nf3 {[%emt 0:06:13]} Qc7 {[%emt 0:02:22]} 13. h3 {[%emt 0:07:10]} Re8 {[%emt 0:01:51]} 14. Rd1 {[%emt 0:07:40]} b6 {[%emt 0:01:46]} 15. Rb1 Bb7 {[%emt 0:06:10]} 16. c4 {[%emt 0:06:52]} dxc4 {[%emt 0:01:48]} 17. Qxc4 {[%emt 0:04:53]} Red8 {[%emt 0:03:43]} 18. Qe2 {[%emt 0:02:26]} Rxd1+ {[%emt 0:02:35]} 19. Bxd1 Rd8 20. Bc2 {[%emt 0:06:59]} Ne4 {[%emt 0:03:02]} 1/2-1/2

[Event "FIDE Zonal 2.5 Open 2019"]
[Site "Montevideo"]
[Date "2019.04.16"]
[Round "5.19"]
[White "Avedisian, Alexander"]
[Black "Restuccia, Francisco"]
[Result "0-1"]
[ECO "A25"]
[WhiteElo "1898"]
[BlackElo "2100"]
[Annotator "NA"]
[PlyCount "90"]
[EventDate "2019.04.13"]
[EventType "swiss"]
[EventCountry "URU"]
[SourceTitle "playchess.com"]
[Source "ChessBase"]
[SourceQuality "1"]
[TimeControl "40/5400+30:1800+30"]

1. g3 {[%emt 0:00:00]} e5 {[%emt 0:12:46]} 2. c4 {[%emt 0:00:00]} Nc6 {[%emt 0:00:53]} 3. Bg2 {[%emt 0:00:00]} g6 {[%emt 0:00:48]} 4. Nc3 {[%emt 0:00:14]} Bg7 {[%emt 0:00:07]} 5. Nf3 {[%emt 0:00:46]} d6 {[%emt 0:00:29]} 6. O-O {[%emt 0:01:33]} Nge7 {[%emt 0:03:32]} 7. h3 {[%emt 0:12:12]} O-O {[%emt 0:02:34]} 8. e4 {[%emt 0:00:11]} f5 {[%emt 0:05:46]} 9. d3 {[%emt 0:02:04]} h6 {[%emt 0:01:29]} 10. Nd5 {[%emt 0:02:47]} g5 {[%emt 0:02:35]} 11. Rb1 {[%emt 0:22:39]} a5 {[%emt 0:01:24]} 12. b3 {[%emt 0:01:57]} f4 {[%emt 0:07:03]} 13. Kh2 {[%emt 0:13:17]} Ng6 {[%emt 0:08:49]} 14. g4 {[%emt 0:05:53]} Rf7 {[%emt 0:07:27]} 15. Bb2 {[%emt 0:00:51]} Nd4 {[%emt 0:01:41]} 16. Bxd4 {[%emt 0:01:47]} exd4 {[%emt 0:00:08]} 17. e5 {[%emt 0:16:10]} dxe5 {[%emt 0:01:41]} 18. c5 {[%emt 0:00:41]} Qxd5 {[%emt 0:04:58]} 19. Nxg5 {[%emt 0:01:00]} Qxc5 {[%emt 0:05:38]} 20. Nxf7 {[%emt 0:00:10]} Kxf7 {[%emt 0:00:02]} 21. Rc1 {[%emt 0:00:44]} Qd6 {[%emt 0:00:46]} 22. Be4 {[%emt 0:00:34]} Bd7 {[%emt 0:15:05]} 23. Bxb7 {[%emt 0:01:01]} Rb8 {[%emt 0:01:46]} 24. Be4 {[%emt 0:00:12]} f3 {[%emt 0:04:59]} 25. Qxf3+ {[%emt 0:04:19]} Nf4 {[%emt 0:00:03]} 26. Rc2 {[%emt 0:00:47]} c5 {[%emt 0:00:57]} 27. Rfc1 {[%emt 0:00:42]} Bf8 {[%emt 0:04:02]} 28. Rg1 {[%emt 0:00:23]} Be7 {[%emt 0:00:19]} 29. Qg3 {[%emt 0:02:52]} Qf6 {[%emt 0:00:21]} 30. h4 {[%emt 0:02:18]} Rg8 {[%emt 0:03:18]} 31. f3 {[%emt 0:01:30]} Nh5 {[%emt 0:00:21]} 32. Qe1 {[%emt 0:00:46]} Qf4+ {[%emt 0:00:03]} 33. Kh1 {[%emt 0:00:41]} Nf6 {[%emt 0:00:03]} 34. Qc1 {[%emt 0:01:16]} Nxe4 {[%emt 0:01:06]} 35. Qxf4+ {[%emt 0:00:23]} exf4 {[%emt 0:00:02]} 36. dxe4 {[%emt 0:00:12]} Ke6 {[%emt 0:01:04]} 37. h5 {[%emt 0:00:26]} Ke5 {[%emt 0:00:27]} 38. Rd1 {[%emt 0:01:12]} Bb5 {[%emt 0:00:14]} 39. Kg2 {[%emt 0:01:40]} d3 {[%emt 0:00:22]} 40. Rcc1 {[%emt 0:01:04]} Rd8 {[%emt 0:00:54]} 41. Kf2 {[%emt 0:30:19]} Kd4 {[%emt 0:05:09]} 42. Rd2 {[%emt 0:00:00]} c4 {[%emt 0:01:50]} 43. bxc4 {[%emt 0:00:00]} Bxc4 {[%emt 0:00:07]} 44. Rcc2 {[%emt 0:00:00]} Bh4+ {[%emt 0:02:40]} 45. Kg2 {[%emt 0:00:00]} Ke3 {[%emt 0:00:51]} 0-1

[Event "FIDE Zonal 2.5 Open 2019"]
[Site "Montevideo"]
[Date "2019.04.16"]
[Round "5.20"]
[White "Vazquez, Facundo"]
[Black "Pena Canapa, Alfredo"]
[Result "1-0"]
[ECO "D20"]
[WhiteElo "2009"]
[BlackElo "1811"]
[Annotator "NA"]
[PlyCount "51"]
[EventDate "2019.04.13"]
[EventType "swiss"]
[EventCountry "URU"]
[SourceTitle "playchess.com"]
[Source "ChessBase"]
[SourceQuality "1"]
[TimeControl "40/5400+30:1800+30"]

1. d4 {[%emt 0:00:00]} d5 {[%emt 0:00:00]} 2. c4 {[%emt 0:00:00]} dxc4 {[%emt 0:00:00]} 3. e4 {[%emt 0:00:00]} e5 {[%emt 0:00:10]} 4. Nf3 {[%emt 0:01:54]} exd4 {[%emt 0:01:28]} 5. Bxc4 {[%emt 0:00:25]} Bb4+ {[%emt 0:07:30]} 6. Bd2 {[%emt 0:04:14]} Bxd2+ {[%emt 0:02:27]} 7. Nbxd2 {[%emt 0:00:03]} c5 {[%emt 0:08:35]} 8. b4 {[%emt 0:07:09]} Nf6 {[%emt 0:09:40]} 9. bxc5 {[%emt 0:03:52]} O-O {[%emt 0:01:26]} 10. O-O {[%emt 0:00:12]} Nc6 {[%emt 0:01:29]} 11. Rb1 {[%emt 0:03:39]} h6 {[%emt 0:04:58]} 12. h3 {[%emt 0:04:13]} Qe7 {[%emt 0:04:27]} 13. Qc2 {[%emt 0:02:41]} Rb8 {[%emt 0:05:59]} 14. Rfe1 {[%emt 0:03:05]} Be6 {[%emt 0:06:37]} 15. Bd5 {[%emt 0:10:27]} Rfc8 {[%emt 0:06:53]} 16. Nb3 {[%emt 0:01:49]} Nb4 {[%emt 0:02:04]} 17. Qd2 {[%emt 0:00:45]} Nbxd5 {[%emt 0:02:48]} 18. exd5 {[%emt 0:00:02]} Nxd5 {[%emt 0:00:17]} 19. Nfxd4 {[%emt 0:00:22]} Nc7 {[%emt 0:06:18]} 20. Nf5 {[%emt 0:05:37]} Qf6 {[%emt 0:02:19]} 21. Nd6 {[%emt 0:00:07]} Rd8 {[%emt 0:01:03]} 22. Nd4 {[%emt 0:02:42]} Bd5 {[%emt 0:00:46]} 23. N4f5 {[%emt 0:02:16]} Be6 {[%emt 0:00:29]} 24. Qd4 {[%emt 0:09:02]} Qxd4 {[%emt 0:01:44]} 25. Nxd4 {[%emt 0:00:03]} b6 {[%emt 0:01:46]} 26. Nc6 {[%emt 0:01:27]} 1-0

[Event "FIDE Zonal 2.5 Open 2019"]
[Site "Montevideo"]
[Date "2019.04.16"]
[Round "5.21"]
[White "Adasme Fredes, Mauricio"]
[Black "Reolon, Victor"]
[Result "1-0"]
[ECO "A40"]
[WhiteElo "2086"]
[BlackElo "1659"]
[Annotator "NA"]
[PlyCount "55"]
[EventDate "2019.04.13"]
[EventType "swiss"]
[EventCountry "URU"]
[SourceTitle "playchess.com"]
[Source "ChessBase"]
[SourceQuality "1"]
[TimeControl "40/5400+30:1800+30"]

1. d4 {[%emt 0:00:27]} e6 {[%emt 0:00:00]} 2. c4 {[%emt 0:00:10]} f5 {[%emt 0:00:00]} 3. Nf3 {[%emt 0:01:32]} Nf6 {[%emt 0:00:43]} 4. g3 {[%emt 0:00:42]} Be7 {[%emt 0:00:50]} 5. d5 {[%emt 0:01:00]} O-O {[%emt 0:05:18]} 6. Bg2 {[%emt 0:00:10]} exd5 {[%emt 0:03:48]} 7. cxd5 {[%emt 0:00:13]} Bb4+ {[%emt 0:02:20]} 8. Nc3 {[%emt 0:02:00]} d6 {[%emt 0:04:33]} 9. O-O {[%emt 0:00:27]} Na6 {[%emt 0:05:24]} 10. Nd4 {[%emt 0:02:58]} Nc5 {[%emt 0:05:28]} 11. a3 {[%emt 0:03:18]} Bxc3 {[%emt 0:00:20]} 12. bxc3 {[%emt 0:00:02]} Qe8 {[%emt 0:03:53]} 13. c4 {[%emt 0:04:07]} Bd7 {[%emt 0:07:51]} 14. Qc2 {[%emt 0:03:13]} Nfe4 {[%emt 0:06:37]} 15. f3 {[%emt 0:07:52]} Nf6 {[%emt 0:16:06]} 16. Bh3 {[%emt 0:12:36]} Qg6 {[%emt 0:06:02]} 17. Nxf5 {[%emt 0:07:33]} Nxd5 {[%emt 0:00:39]} 18. e4 {[%emt 0:00:19]} Ba4 {[%emt 0:11:14]} 19. Qd2 {[%emt 0:01:26]} Kh8 {[%emt 0:09:25]} 20. Qxd5 {[%emt 0:02:37]} Rae8 {[%emt 0:05:01]} 21. Bb2 {[%emt 0:00:36]} Ne6 {[%emt 0:01:41]} 22. Qd2 {[%emt 0:05:37]} Bc6 {[%emt 0:00:58]} 23. Nh4 {[%emt 0:02:33]} Qh5 {[%emt 0:01:10]} 24. Bf5 {[%emt 0:02:43]} Kg8 {[%emt 0:00:57]} 25. Qc3 {[%emt 0:01:48]} Qg5 {[%emt 0:01:12]} 26. Rae1 {[%emt 0:01:34]} Rf6 {[%emt 0:00:03]} 27. Qc2 {[%emt 0:04:11]} Rxf5 {[%emt 0:01:24]} 28. exf5 {[%emt 0:01:42]} 1-0